bitfinex/quotes_ETHUSD_20250822
["timestamp","ask_amount","ask_price","bid_price","bid_amount"]
[1755826895970,0.002,4260.5,4260.0,3.0]
[1755826896276,0.2915,4260.1,4260.0,3.66]
[1755826896467,0.7353,4260.1,4259.6,3.0]
[1755826896955,0.2915,4260.1,4259.6,0.66]
[1755826897275,0.4438,4260.0,4259.5,0.66]
[1755826897669,4.4168,4260.0,4259.5,0.66]
[1755826897997,0.2859,4259.6,4259.1,0.66]
[1755826898297,0.2859,4259.6,4259.3,0.66]
[1755826898862,0.2859,4259.6,4259.0,6.05389524]
[1755826899099,0.2859,4259.6,4259.2,5.347822]
[1755826899291,0.2859,4259.6,4259.3,2.34779752]
[1755826900089,3.973,4260.0,4259.5,3.2866]
[1755826900266,3.973,4260.0,4259.5,0.2866]
[1755826900687,4.4168,4260.0,4259.5,2.63427449]
[1755826901765,2.2498,4260.4,4259.6,0.66]
[1755826901993,3.972,4260.3,4259.6,0.66]
[1755826902178,3.972,4260.3,4259.5,0.66]
[1755826902593,3.972,4260.3,4259.5,3.00768535]
[1755826902908,3.972,4260.3,4259.6,3.66]
[1755826903076,0.4438,4260.2,4259.6,3.00763545]
[1755826903278,3.972,4260.3,4259.7,2.34757267]
[1755826903504,3.972,4260.3,4259.6,0.49667638]
[1755826903703,0.002,4260.5,4260.2,0.2866]
[1755826904570,0.002,4260.5,4259.9,3.0]
[1755826904808,0.002,4260.5,4259.9,0.66]
[1755826905011,0.002,4260.5,4259.9,3.00747217]
[1755826905707,0.002,4260.5,4260.0,2.34737203]
[1755826906409,0.002,4260.5,4260.0,0.66]
[1755826906775,0.002,4260.5,4260.4,0.2866]
[1755826907197,0.002,4260.5,4260.4,2.63379744]
[1755826908307,0.002,4260.5,4260.4,0.2866]
[1755826908474,0.002,4260.5,4260.4,2.63379744]
[1755826909174,0.002,4260.5,4260.4,6.29379744]
[1755826909472,0.002,4260.5,4260.4,7.31242529]
[1755826913592,0.002,4260.5,4260.4,6.83922529]
[1755826913928,0.002,4260.5,4260.4,6.29379744]
[1755826915129,0.002,4260.5,4260.4,6.76699744]
[1755826915294,0.002,4260.5,4260.4,6.29379744]
[1755826919525,0.002,4260.5,4260.4,6.76699744]
[1755826919706,0.002,4260.5,4260.4,6.29379744]
[1755826919906,0.002,4260.5,4260.4,8.80876156]
[1755826920932,0.002,4260.5,4260.4,15.90759027]
[1755826921838,0.002,4260.5,4260.4,16.61327427]
[1755826925437,0.002,4260.5,4260.4,9.04124556]
[1755826925610,0.2879,4260.5,4260.4,9.97819744]
[1755826926441,0.002,4260.5,4260.4,10.29819744]
[1755826926948,0.2879,4260.5,4260.4,10.29819744]
[1755826927941,0.7451,4260.5,4260.4,3.66]
[1755826928507,0.7451,4260.5,4260.4,3.0]
[1755826929314,0.7451,4260.5,4260.1,0.66]
[1755826929527,0.4572,4260.4,4260.2,3.0]
[1755826929729,0.3132,4260.3,4260.2,5.34730763]
[1755826929920,0.7704,4260.3,4260.2,5.34730763]
[1755826930240,0.7704,4260.3,4260.1,2.3473597]
[1755826930416,0.3132,4260.3,4260.1,2.3473597]
[1755826930622,0.4572,4260.2,4260.0,3.66]
[1755826930814,0.7704,4260.1,4260.0,3.66]
[1755826931010,0.7704,4260.1,4260.0,6.00741784]
[1755826931742,0.002,4260.5,4260.3,2.34723298]
[1755826931944,0.7704,4260.4,4260.3,2.34723298]
[1755826932144,0.3132,4260.4,4260.3,2.34723298]
[1755826932655,0.002,4260.5,4260.4,2.34719744]
[1755826932859,0.002,4260.5,4260.4,6.29979744]
[1755826933240,0.002,4260.5,4260.4,11.04729744]
[1755826933727,0.002,4260.5,4260.4,10.58979744]
[1755826933929,0.002,4260.5,4260.4,10.29719744]
[1755826934226,0.7724,4260.5,4260.4,10.29719744]
[1755826934451,0.7724,4260.5,4260.4,6.32719744]
[1755826935375,0.3152,4260.5,4260.4,6.32719744]
[1755826935527,0.002,4260.5,4260.4,8.34174764]
[1755826936376,0.002,4260.5,4260.4,7.88424764]
[1755826936527,0.002,4260.5,4260.4,8.34174764]
[1755826936931,0.32000001,4260.8,4260.7,13.10586088]
[1755826937167,0.32000001,4260.8,4260.7,19.68193229]
[1755826937352,0.32000001,4260.8,4260.7,20.13943229]
[1755826938869,1e-08,4261.0,4260.9,3.00692201]
[1755826939160,0.02,4261.8,4261.7,6.00648145]
[1755826939483,0.02,4261.8,4261.7,14.2332142]
[1755826939760,0.02,4261.8,4261.7,18.6607142]
[1755826940160,0.02,4261.8,4261.7,7.59158549]
[1755826940467,0.02,4261.8,4261.7,11.56158549]
[1755826941175,0.02,4261.8,4261.7,19.1179142]
[1755826947922,0.02,4261.8,4261.7,18.6604142]
[1755826948495,0.02,4261.8,4261.7,19.1179142]
[1755826949818,0.02,4261.8,4261.7,18.6604142]
[1755826950317,0.02,4261.8,4261.7,14.6904142]
[1755826950501,0.02,4261.8,4261.7,18.6584142]
[1755826951107,0.02,4261.8,4261.7,22.9484142]
[1755826953112,0.02,4261.8,4261.7,11.58898549]
[1755826953113,0.3332,4261.8,4261.7,11.58898549]
[1755826953328,0.7904,4261.8,4261.7,14.89698549]
[1755826953530,0.7904,4261.8,4261.7,10.92898549]
[1755826953816,0.7904,4261.8,4261.7,14.06168145]
[1755826953993,0.3332,4261.8,4261.7,14.72168145]
[1755826954193,0.7904,4261.8,4261.7,3.4572]
[1755826954893,0.7904,4261.8,4261.7,0.4572]
[1755826955092,0.7904,4261.8,4261.6,3.968]
[1755826955296,0.7904,4261.8,4261.7,11.75697971]
[1755826955297,0.02,4261.8,4261.7,11.75697971]
[1755826955498,0.02,4261.8,4261.7,6.71203245]
[1755826955702,0.7904,4261.8,4261.7,6.71203245]
[1755826955900,0.02,4261.8,4261.7,13.81086116]
[1755826956099,0.3332,4261.8,4261.7,13.81086116]
[1755826956421,0.7904,4261.8,4261.7,7.672551]
[1755826956621,0.7904,4261.8,4261.7,3.705551]
[1755826956823,0.7904,4261.8,4261.7,6.05203245]
[1755826957121,0.02,4261.8,4261.7,6.71203245]
[1755826957624,0.02,4261.8,4261.7,7.00463245]
[1755826957812,0.02,4261.8,4261.7,9.04633711]
[1755826958887,0.02,4261.8,4261.7,8.75373711]
[1755826959094,0.02,4261.8,4261.7,12.72073711]
[1755826959294,0.3285,4261.8,4261.7,12.72073711]
[1755826960120,0.7836,4261.8,4261.7,8.75373711]
[1755826960305,0.7836,4261.8,4261.7,6.71203245]
[1755826960510,0.7836,4261.8,4261.7,10.67903245]
[1755826961435,0.3285,4261.8,4261.7,10.67903245]
[1755826961598,0.02,4261.8,4261.7,10.96493245]
[1755826961999,0.7836,4261.8,4261.7,10.67903245]
[1755826962409,0.7836,4261.8,4261.7,8.332551]
[1755826962943,0.7836,4261.8,4261.7,10.67903245]
[1755826964008,0.3285,4261.8,4261.7,10.67903245]
[1755826964235,0.02,4261.8,4261.7,11.98159404]
[1755826964432,0.02,4261.8,4261.7,12.26749404]
[1755826965445,0.3285,4261.8,4261.7,11.98159404]
[1755826965647,0.7836,4261.8,4261.7,10.67903245]
[1755826966253,0.3285,4261.8,4261.7,10.67903245]
[1755826966748,0.02,4261.8,4261.7,10.96493245]
[1755826967457,0.3285,4261.8,4261.7,10.67903245]
[1755826967645,0.02,4261.8,4261.7,10.96493245]
[1755826967848,0.02,4261.8,4261.7,12.29608404]
[1755826969560,0.3285,4261.8,4261.7,12.01018404]
[1755826969847,0.02,4261.8,4261.7,12.29608404]
[1755826970149,0.02,4261.8,4261.7,12.73938404]
[1755826974176,1e-08,4261.8,4261.7,12.85698404]
[1755826977844,1e-08,4261.8,4261.7,8.88998404]
[1755826978372,1e-08,4261.8,4261.7,12.85698404]
[1755826980907,1e-08,4261.8,4261.7,8.88998404]
[1755826981056,1e-08,4261.8,4261.7,12.41368404]
[1755826981262,1e-08,4261.8,4261.7,12.85698404]
[1755826981559,0.02,4262.8,4262.7,3.00593098]
[1755826981764,0.02,4262.8,4262.7,11.2170072]
[1755826981983,0.3285,4262.8,4262.7,11.2170072]
[1755826982153,0.7836,4262.8,4262.7,11.6721072]
[1755826983256,0.3285,4262.8,4262.7,11.6721072]
[1755826983656,0.7836,4262.8,4262.7,11.6721072]
[1755826984476,0.7836,4262.8,4262.7,6.46103098]
[1755826984779,0.7836,4262.8,4262.7,10.42703098]
[1755826985703,0.7836,4262.8,4262.7,6.46103098]
[1755826985902,0.7836,4262.8,4262.7,10.42703098]
[1755826986601,0.7836,4262.8,4262.7,6.46103098]
[1755826986800,0.7836,4262.8,4262.7,10.42703098]
[1755826987801,0.7836,4262.8,4262.7,0.4551]
[1755826987990,7.88242871,4262.8,4262.7,0.4551]
[1755826988504,7.88242871,4262.8,4261.0,0.001]
[1755826988505,7.88242871,4262.8,4261.7,3.966]
[1755826988702,7.09882871,4262.3,4262.0,0.705573]
[1755826988874,0.3099,4262.1,4262.0,0.705573]
[1755826989381,0.7639,4262.1,4262.0,0.705573]
[1755826990101,0.7639,4262.1,4261.7,3.0]
[1755826990603,0.454,4262.0,4261.9,3.705573]
[1755826990804,0.7639,4262.0,4261.9,6.05194433]
[1755826991001,0.454,4262.6,4262.3,0.66]
[1755826991206,0.3099,4262.4,4262.3,6.00615113]
[1755826991403,0.02,4262.8,4262.7,3.00593098]
[1755826991700,0.3299,4262.8,4262.7,6.00593098]
[1755826991902,0.02,4262.8,4262.7,6.29723098]
[1755826992091,0.02,4262.8,4262.7,8.7168402]
[1755826994802,1e-08,4262.8,4262.7,8.7168402]
[1755826995008,1e-08,4262.8,4262.7,8.8344402]
[1755826996379,1e-08,4262.8,4262.7,12.8004402]
[1755826997307,1e-08,4262.8,4262.7,29.3813562]
[1755826998096,1e-08,4262.8,4262.7,19.5813732]
[1755826998307,1e-08,4262.8,4262.7,16.7727352]
[1755826999304,1e-08,4262.8,4262.7,27.68613526]
[1755826999826,1e-08,4262.8,4262.7,27.85832728]
[1755827000532,1e-08,4262.8,4262.7,11.86383222]
[1755827000728,1e-08,4262.8,4262.7,27.19932728]
[1755827001032,1e-08,4262.8,4262.7,27.85932728]
[1755827001627,1e-08,4262.8,4262.7,8.24296122]
[1755827001931,0.30990001,4262.8,4262.7,12.20996122]
[1755827002425,1e-08,4262.8,4262.7,12.95006122]
[1755827002639,1e-08,4262.8,4262.7,12.50326122]
[1755827003636,1e-08,4262.8,4262.7,12.21196122]
[1755827004212,1e-08,4262.8,4262.7,12.20996122]
[1755827005442,1e-08,4262.8,4262.7,8.53426122]
[1755827005646,0.76390001,4262.8,4262.7,8.24296122]
[1755827005940,0.30990001,4262.8,4262.7,8.24296122]
[1755827006143,1e-08,4262.8,4262.7,10.238152]
[1755827006358,1e-08,4262.8,4262.7,25.86394706]
[1755827006647,1e-08,4262.8,4262.7,31.21740906]
[1755827006827,1e-08,4262.8,4262.7,28.68243706]
[1755827007024,1e-08,4262.8,4262.7,25.98154706]
[1755827007212,1e-08,4262.8,4262.7,28.34368669]
[1755827010666,1e-08,4262.8,4262.7,30.82492169]
[1755827010975,1e-08,4262.8,4262.7,28.34368669]
[1755827012083,1e-08,4262.8,4262.7,23.92888669]
[1755827012285,1e-08,4262.8,4262.7,27.89388669]
[1755827012669,1e-08,4262.8,4262.7,28.34268669]
[1755827013484,1e-08,4262.8,4262.7,41.02900069]
[1755827013656,1e-08,4262.8,4262.7,39.16475769]
[1755827013876,1e-08,4262.8,4262.7,32.88561869]
[1755827014369,1e-08,4262.8,4262.7,28.34268669]
[1755827015148,0.30990001,4262.8,4262.7,7.97429163]
[1755827015349,1e-08,4262.8,4262.7,10.237152]
[1755827015557,1e-08,4262.8,4262.7,10.977252]
[1755827015858,1e-08,4262.8,4262.7,10.528452]
[1755827016487,1e-08,4262.8,4262.7,17.61657537]
[1755827017265,0.30990001,4262.8,4262.7,12.70027537]
[1755827017454,0.30990001,4262.8,4262.7,18.35540616]
[1755827017655,0.30990001,4262.8,4262.7,7.29728279]
[1755827017856,0.30990001,4262.8,4262.7,18.35540616]
[1755827018289,0.30990001,4262.8,4262.7,11.92828279]
[1755827018475,1e-08,4262.8,4262.7,19.01640616]
[1755827019082,1e-08,4262.8,4262.7,19.32040616]
[1755827019595,1e-08,4262.8,4262.7,19.79330616]
[1755827019989,1e-08,4262.8,4262.7,19.32040616]
[1755827020890,1e-08,4262.8,4262.7,19.79330616]
[1755827021607,1e-08,4263.3,4263.2,3.00565584]
[1755827021770,1e-08,4263.3,4263.2,17.66834479]
[1755827021972,1e-08,4263.3,4263.2,33.52964979]
[1755827022300,0.02,4263.8,4263.7,2.34538077]
[1755827022499,0.3116,4263.8,4263.7,9.98238077]
[1755827023222,0.5357,4263.8,4263.7,9.98238077]
[1755827023587,0.3116,4263.8,4263.7,9.98238077]
[1755827023786,0.3116,4263.8,4263.7,10.68750777]
[1755827025195,0.02,4263.8,4263.7,11.38247975]
[1755827025400,0.3109,4263.8,4263.7,11.38247975]
[1755827027929,0.02,4263.8,4263.7,11.38247975]
[1755827028231,0.3109,4263.8,4263.7,11.38247975]
[1755827028404,0.02,4263.8,4263.7,11.38247975]
[1755827028906,1e-08,4263.8,4263.7,12.15937975]
[1755827029230,1e-08,4263.8,4263.7,12.39361941]
[1755827029417,1e-08,4263.8,4263.7,12.27697975]
[1755827030499,1e-08,4264.8,4264.7,6.00483082]
[1755827030699,1e-08,4264.8,4264.7,17.68243727]
[1755827030900,1e-08,4264.8,4264.7,17.98643727]
[1755827031335,1e-08,4264.8,4264.7,18.45833727]
[1755827031702,1e-08,4264.8,4264.7,18.87623727]
[1755827032103,1e-08,4264.8,4264.7,18.40333727]
[1755827032638,0.09900001,4264.8,4264.7,18.10033727]
[1755827034004,0.09900001,4264.8,4264.7,7.0232139]
[1755827034208,1e-08,4264.8,4264.7,18.10033727]
[1755827034632,0.10220001,4264.8,4264.7,18.10033727]
[1755827034839,1e-08,4264.8,4264.7,18.10033727]
[1755827035338,1e-08,4264.8,4264.7,18.87723727]
[1755827035543,1e-08,4264.8,4264.7,18.99483727]
[1755827035743,1e-08,4264.8,4264.7,18.52193727]
[1755827036833,1e-08,4264.8,4264.7,18.99483727]
[1755827041059,1e-08,4264.8,4264.7,7.9177139]
[1755827041229,1e-08,4264.8,4264.7,18.99283727]
[1755827041435,1e-08,4264.8,4264.7,14.53293727]
[1755827041654,0.00200001,4264.8,4264.7,18.52293727]
[1755827042327,0.00200001,4264.8,4264.7,18.99583727]
[1755827042953,1e-08,4264.8,4264.7,18.99583727]
[1755827043269,1e-08,4264.8,4264.7,18.99483727]
[1755827047129,1e-08,4264.8,4264.7,15.00583727]
[1755827047329,1e-08,4264.8,4264.7,18.99283727]
[1755827047525,1e-08,4264.8,4264.7,7.1408139]
[1755827047783,0.09900001,4264.8,4264.7,17.55493727]
[1755827047963,0.09900001,4264.8,4264.7,17.43733727]
[1755827048163,1e-08,4264.8,4264.7,18.09733727]
[1755827048853,0.10220001,4264.8,4264.7,18.09533727]
[1755827049563,1e-08,4264.8,4264.7,18.09533727]
[1755827050662,1e-08,4264.8,4264.7,18.39413727]
[1755827050964,1e-08,4264.8,4264.7,24.3598001]
[1755827051261,1e-08,4264.8,4264.7,23.25529146]
[1755827053037,1e-08,4264.8,4264.7,19.27561546]
[1755827053236,1e-08,4264.8,4264.7,18.94983727]
[1755827054362,0.09900001,4264.8,4264.7,4.1408139]
[1755827054540,0.09900001,4264.8,4264.7,7.3462139]
[1755827054740,0.09900001,4264.8,4264.7,14.43433727]
[1755827055168,0.02,4265.8,4265.7,6.00428112]
[1755827055364,0.3182,4265.8,4265.7,6.60470923]
[1755827055975,0.3182,4265.8,4265.7,7.30951123]
[1755827056160,0.3397,4265.8,4265.7,6.70908312]
[1755827056542,0.3182,4265.8,4265.7,6.70908312]
[1755827057360,0.3397,4265.8,4265.7,6.70908312]
[1755827057935,0.3182,4265.8,4265.7,6.70908312]
[1755827058542,0.02,4265.8,4265.7,11.99462669]
[1755827059287,0.0232,4265.8,4265.7,8.01262669]
[1755827059968,0.3368,4265.8,4265.7,6.70908312]
[1755827060540,0.0232,4265.8,4265.7,6.70908312]
[1755827062383,0.3368,4265.8,4265.7,6.70908312]
[1755827063264,0.0232,4265.8,4265.7,6.70908312]
[1755827063982,0.0232,4265.8,4265.7,0.87817569]
[1755827063983,7.42492337,4265.8,4265.7,0.87817569]
[1755827064540,7.42492337,4265.8,4265.7,0.704802]
[1755827065395,9.22792337,4265.8,4265.7,0.704802]
[1755827065678,9.22792337,4265.8,4264.4,0.02344995]
[1755827065881,0.3136,4265.7,4265.3,0.705077]
[1755827066053,0.0063,4265.4,4265.3,0.705077]
[1755827066375,0.3168,4265.4,4265.3,0.705077]
[1755827067088,7.40492337,4265.4,4265.3,0.705077]
[1755827069949,1.823,4265.8,4265.3,0.705077]
[1755827069950,3.982,4265.7,4265.3,3.04957797]
[1755827070149,3.982,4265.7,4265.4,5.34442897]
[1755827070462,0.2982,4265.5,4265.4,5.34442897]
[1755827070667,0.02,4265.8,4265.7,2.34428112]
[1755827070847,0.02,4265.8,4265.7,6.30308112]
[1755827071046,0.02,4265.8,4265.7,6.74118112]
[1755827072474,0.02,4265.8,4265.7,7.64973553]
[1755827075480,0.02,4265.8,4265.7,7.00788012]
[1755827075848,0.02,4265.8,4265.7,7.44598012]
[1755827079458,0.02,4265.8,4265.7,6.70908012]
[1755827079654,0.02,4265.8,4265.7,7.02068012]
[1755827079999,0.02,4265.8,4265.7,7.45778012]
[1755827080291,0.02,4265.8,4265.7,8.83589443]
[1755827083802,1e-08,4265.8,4265.7,8.83589443]
[1755827087166,1e-08,4265.8,4265.7,13.12589443]
[1755827088700,1e-08,4265.8,4265.7,12.06019443]
[1755827089003,1e-08,4265.8,4265.7,12.80889443]
[1755827092839,1e-08,4265.8,4265.7,12.06019443]
[1755827093021,0.09900001,4265.8,4265.7,12.06019443]
[1755827094689,0.41570001,4265.8,4265.7,7.02208012]
[1755827094889,0.09900001,4265.8,4265.7,3.04908012]
[1755827095086,7.49558602,4265.8,4265.7,0.704799]
[1755827097424,7.49558602,4265.8,4264.7,3.0]
[1755827097626,7.07988601,4265.1,4264.6,2.34485112]
[1755827097919,7.07988601,4265.1,4264.7,3.705075]
[1755827098222,0.3028,4264.8,4264.7,0.705075]
[1755827098419,0.3028,4264.8,4264.7,3.04990582]
[1755827098608,1.803,4265.3,4264.8,0.66]
[1755827098815,1.803,4265.3,4265.2,2.34455594]
[1755827099014,0.099,4265.3,4264.8,0.66]
[1755827099197,0.099,4265.3,4265.2,2.34455594]
[1755827099392,1e-08,4265.8,4265.2,2.34455594]
[1755827099694,1e-08,4265.8,4265.3,0.66]
[1755827099999,1e-08,4265.8,4265.7,6.00428112]
[1755827100199,0.09900001,4265.8,4265.7,6.00428112]
[1755827100615,1e-08,4265.8,4265.7,6.00428112]
[1755827100831,0.09900001,4265.8,4265.7,3.66]
[1755827101124,0.09900001,4265.8,4265.7,6.00428112]
[1755827101316,1e-08,4265.8,4265.7,6.00428112]
[1755827103431,1e-08,4265.8,4265.7,3.66]
[1755827103632,0.09900001,4265.8,4265.7,4.364893]
[1755827104347,7.49558602,4265.8,4265.7,3.704893]
[1755827106109,7.49558602,4265.8,4265.7,0.704893]
[1755827106324,11.47158602,4265.8,4265.7,0.704893]
[1755827106836,11.47158602,4265.8,4264.8,0.001]
[1755827107026,7.07988601,4264.9,4264.8,0.001]
[1755827107337,11.15708601,4264.9,4264.8,0.001]
[1755827107708,11.15708601,4264.9,4264.8,3.001]
[1755827108039,1.803,4265.2,4264.8,3.07916636]
[1755827108351,1.803,4265.2,4265.1,6.00461091]
[1755827108514,1.8998,4265.2,4265.1,3.66]
[1755827109039,1.8998,4265.2,4265.1,6.00461091]
[1755827109224,8.97968601,4265.2,4265.1,3.0]
[1755827109425,8.97968601,4265.2,4265.1,5.34461091]
[1755827109629,8.88288601,4265.2,4265.1,5.34461091]
[1755827109830,7.07988601,4265.5,4265.3,2.34449873]
[1755827110139,7.07988601,4265.5,4265.0,2.34466277]
[1755827110140,3.977,4265.5,4265.1,0.66]
[1755827110306,3.977,4265.5,4265.2,2.34453629]
[1755827110509,3.977,4265.5,4265.3,2.344494]
[1755827110705,0.0968,4265.4,4265.3,2.344494]
[1755827111344,11.05688601,4265.5,4265.4,5.344446]
[1755827111649,0.00200001,4265.8,4265.7,3.00428112]
[1755827111854,0.00200001,4265.8,4265.7,6.73768112]
[1755827113327,7.18088602,4265.8,4265.7,3.0]
[1755827114051,0.00200001,4265.8,4265.7,6.29058112]
[1755827114349,4.07800001,4265.8,4265.7,3.0]
[1755827114951,4.07800001,4265.8,4265.7,5.34428112]
[1755827116046,3.97900001,4265.8,4265.7,5.34428112]
[1755827116249,3.97900001,4265.8,4265.7,6.04923412]
[1755827116528,0.00200001,4265.8,4265.7,6.33553412]
[1755827116727,3.98000001,4265.8,4265.7,6.33553412]
[1755827117250,3.98000001,4265.8,4265.7,6.04923412]
[1755827117423,3.97800001,4265.8,4265.7,6.78263412]
[1755827118125,0.00200001,4265.8,4265.7,7.44263412]
[1755827118441,0.00200001,4265.8,4265.7,8.42133537]
[1755827119323,0.00200001,4265.8,4265.7,7.44263412]
[1755827121333,0.00200001,4265.8,4265.7,11.41863412]
[1755827128359,1e-08,4265.8,4265.7,11.41863412]
[1755827128547,1e-08,4265.8,4265.7,11.53623412]
[1755827133646,1e-08,4265.8,4265.7,18.61612013]
[1755827133845,1e-08,4265.8,4265.7,20.71226998]
[1755827136286,7.07988601,4267.7,4265.7,20.71226998]
[1755827136287,1.803,4269.2,4267.7,3.00318251]
[1755827136488,1.803,4269.2,4267.7,9.97818251]
[1755827136663,1.803,4269.2,4267.7,17.79146852]
[1755827136983,1.803,4269.2,4267.7,10.80550951]
[1755827137147,1.803,4269.2,4267.7,19.21395176]
[1755827138081,1.803,4269.2,4267.7,12.13406575]
[1755827138283,7.08530292,4268.4,4267.7,3.753927]
[1755827138584,7.08530292,4268.4,4267.7,3.093927]
[1755827140490,0.00541691,4268.4,4267.7,3.093927]
[1755827140689,0.00541691,4268.4,4267.7,5.43710951]
[1755827140989,0.00541691,4268.4,4267.7,3.093927]
[1755827141493,0.00541691,4268.4,4267.7,5.43710951]
[1755827141697,0.00541691,4268.4,4267.7,3.093927]
[1755827142269,7.07988601,4268.3,4267.7,3.093927]
[1755827142923,0.022,4267.8,4267.7,3.093927]
[1755827143104,0.022,4267.8,4267.7,0.093927]
[1755827145996,0.022,4267.8,4267.7,2.43710951]
[1755827146192,0.022,4267.8,4267.7,0.093927]
[1755827152833,0.022,4267.8,4267.7,2.43710951]
[1755827152999,0.022,4267.8,4267.7,0.093927]
[1755827154116,0.022,4267.8,4267.7,2.43710951]
[1755827154318,0.022,4267.8,4267.7,0.093927]
[1755827161026,7.10188601,4267.8,4266.4,2.34384292]
[1755827161221,0.022,4267.8,4267.4,0.174999]
[1755827161445,7.07988601,4267.5,4267.4,0.174999]
[1755827161625,8.88288601,4267.5,4267.4,0.174999]
[1755827162015,5.77,4267.5,4267.4,0.174999]
[1755827163631,5.77,4267.5,4267.1,0.001]
[1755827163952,5.77,4267.5,4267.1,0.17693]
[1755827163953,7.07988601,4267.2,4267.1,0.17693]
[1755827164121,7.07988601,4267.2,4267.1,0.001]
[1755827165656,1.803,4267.5,4267.1,0.001]
[1755827165856,7.07988601,4267.2,4267.1,0.001]
[1755827168266,11.04688601,4267.2,4267.1,0.001]
[1755827168970,3.967,4267.2,4267.1,0.3122]
[1755827169169,7.07988601,4267.2,4267.1,0.4336]
[1755827169358,11.04688601,4267.2,4267.1,0.001]
[1755827169564,7.07988601,4267.2,4267.1,0.001]
[1755827169869,7.07988601,4267.2,4267.1,0.4336]
[1755827170243,3.968,4267.2,4267.1,3.08831198]
[1755827170444,1.803,4267.5,4267.4,2.34334723]
[1755827170643,3.968,4267.5,4267.4,2.65454723]
[1755827170843,3.968,4267.5,4267.4,6.08714723]
[1755827171280,3.968,4267.6,4267.5,2.34329232]
[1755827171486,3.968,4267.6,4267.5,2.65449232]
[1755827171688,3.968,4267.6,4267.5,3.08709232]
[1755827172042,0.022,4267.8,4267.7,2.34318251]
[1755827172241,3.99,4267.8,4267.7,2.65438251]
[1755827172543,3.99,4267.8,4267.7,3.08698251]
[1755827172782,3.99,4267.8,4267.7,7.63465836]
[1755827172783,0.022,4267.8,4267.7,7.63465836]
[1755827173092,0.022,4267.8,4267.7,8.29465836]
[1755827174649,0.022,4267.8,4267.7,3.70465]
[1755827174949,0.022,4267.8,4267.2,3.0]
[1755827175184,0.022,4267.8,4267.1,0.4336]
[1755827175359,0.022,4267.8,4267.5,0.4326]
[1755827175565,0.022,4267.8,4267.7,0.3112]
[1755827175762,3.989,4267.8,4267.7,0.3112]
[1755827176051,3.989,4267.8,4267.7,0.7438]
[1755827176649,3.989,4267.8,4267.7,3.08698251]
[1755827176883,0.022,4267.8,4267.7,4.2900091]
[1755827177046,0.022,4267.8,4267.7,7.2900091]
[1755827178575,0.022,4267.8,4267.7,7.3345471]
[1755827178747,0.022,4267.8,4267.7,7.9945471]
[1755827184258,0.022,4267.8,4267.7,7.45152051]
[1755827188857,0.002,4268.3,4268.2,3.00290801]
[1755827189061,0.002,4268.3,4268.2,7.30353709]
[1755827189262,0.002,4268.3,4268.2,7.71270801]
[1755827191405,0.002,4268.3,4268.2,7.80662701]
[1755827191606,0.002,4268.3,4268.2,11.82158765]
[1755827198527,0.002,4268.3,4268.2,10.06182701]
[1755827199020,0.002,4268.3,4268.2,10.52882701]
[1755827199189,0.002,4268.3,4268.2,10.82982701]
[1755827200491,0.002,4268.3,4268.2,6.09682701]
[1755827200686,0.002,4268.3,4268.2,5.43682701]
[1755827201616,0.002,4268.3,4268.2,5.90382701]
[1755827201817,0.002,4268.3,4268.2,6.20482701]
[1755827202408,0.002,4268.3,4268.2,5.43682701]
[1755827203938,0.002,4268.3,4268.2,3.093919]
[1755827204233,0.002,4268.3,4268.2,0.093919]
[1755827204453,0.002,4268.3,4268.2,3.20482701]
[1755827204606,0.002,4268.3,4268.2,6.88825609]
[1755827204806,0.002,4268.3,4268.2,6.86482701]
[1755827205936,0.002,4268.3,4268.2,8.18210784]
[1755827206828,0.002,4268.3,4268.2,10.06182701]
[1755827207540,0.002,4268.3,4268.2,10.82982701]
[1755827210011,0.002,4268.3,4268.2,5.43682701]
[1755827211039,0.002,4268.3,4268.2,6.20482701]
[1755827211347,0.002,4268.3,4268.2,6.86482701]
[1755827211535,0.002,4268.3,4268.2,12.14600945]
[1755827214215,0.002,4268.3,4268.2,5.43682701]
[1755827214842,0.002,4268.3,4268.2,5.90382701]
[1755827215135,0.002,4268.3,4268.2,5.43682701]
[1755827216741,0.002,4268.3,4268.2,5.73782701]
[1755827217043,0.002,4268.3,4268.2,5.90382701]
[1755827217433,0.002,4268.3,4268.2,6.20482701]
[1755827220139,0.002,4268.3,4268.2,10.16882701]
[1755827220340,0.002,4268.3,4268.2,9.40082701]
[1755827221748,0.002,4268.3,4268.2,9.70182701]
[1755827221913,0.002,4268.3,4268.2,10.16882701]
[1755827222714,0.002,4268.3,4268.2,6.20482701]
[1755827222936,0.002,4268.3,4268.2,5.43682701]
[1755827223160,0.002,4268.3,4268.2,3.093919]
[1755827223531,0.002,4268.3,4268.2,5.43682701]
[1755827224144,0.002,4268.3,4268.2,3.093919]
[1755827224650,0.002,4268.3,4268.2,5.43682701]
[1755827224815,0.002,4268.3,4268.2,3.093919]
[1755827225238,0.002,4268.3,4268.2,5.43682701]
[1755827225439,0.002,4268.3,4268.2,5.73782701]
[1755827225658,0.002,4268.3,4268.2,8.06931133]
[1755827225842,0.002,4268.3,4268.2,12.03331133]
[1755827230073,0.02,4268.8,4268.7,3.00263358]
[1755827230239,0.02,4268.8,4268.7,17.35563979]
[1755827230435,0.02,4268.8,4268.7,10.69663358]
[1755827230625,0.02,4268.8,4268.7,12.00056743]
[1755827233847,0.02,4268.8,4268.7,12.09446843]
[1755827237266,0.02,4268.8,4268.7,12.3913462]
[1755827238336,0.002,4269.2,4268.7,12.3913462]
[1755827238538,1.802,4270.5,4269.7,6.00208492]
[1755827238747,5.764,4271.1,4269.7,11.09181288]
[1755827238956,5.764,4271.1,4269.7,18.60279276]
[1755827239161,1.802,4271.1,4269.7,18.69666976]
[1755827240461,1.802,4271.1,4269.7,6.93038988]